[Event "FRA-ch Teams Top 16-Bas 2022"]
[Site "Chartres"]
[Date "2022.06.16"]
[Round "8.6"]
[White "Prodhomme, Boris"]
[Black "Flom, Gabriel"]
[Result "1/2-1/2"]
[ECO "A56"]
[WhiteElo "2045"]
[BlackElo "2442"]
[Annotator "TA"]
[PlyCount "95"]
[EventDate "2022.06.16"]
[EventType "team-tourn"]
[EventCountry "FRA"]
[SourceTitle "playchess.com"]
[Source "ChessBase"]
[SourceQuality "1"]
[TimeControl "40/5400+30:1800+30"]

{[%evp 13,95,57,62,48,60,54,73,47,50,51,67,73,73,69,60,62,97,89,106,102,138,131,133,110,147,159,141,137,137,137,133,74,100,106,94,97,78,-20,-18,-79,31,0,0,-12,0,-67,0,-71,-74,-47,-54,-41,-48,-45,-41,-45,-12,-25,0,-161,-27,-44,0,0,0,-33,-45,-58,0,0,0,0,0,0,0,0,0,0,0,0,0,0,0,0]} 1. d4 {[%emt 0:05:36]} Nf6 {[%emt 0:01:13]} 2. c4 {[%emt 0:00:05]} c5 {[%emt 0:00:26]} 3. d5 {[%emt 0:00:06]} e5 {[%emt 0:00:04]} 4. Nc3 {[%emt 0:03:15]} d6 {[%emt 0:00:12]} 5. e4 {[%emt 0:02:52]} Nbd7 {[%emt 0:02:33]} 6. Nf3 {[%emt 0:08:34]} Be7 {[%emt 0:00:04]} 7. h3 {[%emt 0:01:33]} Nf8 {[%emt 0:04:09]} 8. Be3 {[%emt 0:06:16] A56: Czech Benoni.} Ng6 {[%emt 0:00:14]} 9. g3 {[%emt 0:00:50]} a6 {[%emt 0:04:48]} 10. Qc2 {[%emt 0:11:41] [#] White is more active. White is better.} h6 $146 {[%emt 0:01:39]} ({Predecessor:} 10... Bd7 11. Qb3 O-O 12. Be2 h5 13. a4 Nh7 14. O-O-O h4 15. gxh4 Nxh4 16. Rdg1 Rb8 {1-0 (53) Shen,Y (2444)-Hou,Y (2570) China 2010}) 11. Nd2 {[%emt 0:04:09]} O-O {[%emt 0:06:27]} 12. O-O-O {[%emt 0:06:22]} Bd7 {[%emt 0:05:44]} 13. Be2 {[%emt 0:10:29]} b5 {[%emt 0:00:04]} 14. Rdg1 $1 {[%emt 0:02:48]} Qa5 {[%emt 0:06:52]} 15. Kb1 $1 {[%emt 0:01:27]} b4 {[%emt 0:00:02] [#]} 16. Nd1 {[%emt 0:00:43]} Ba4 {[%emt 0:00:01]} 17. b3 {[%emt 0:02:38]} Bd7 {[%emt 0:00:01]} 18. h4 {[%emt 0:04:16]} Rfe8 {[%emt 0:01:58]} 19. g4 {[%emt 0:05:37]} Nh7 {[%emt 0:00:03]} 20. g5 {[%emt 0:03:02]} hxg5 {[%emt 0:00:02]} 21. hxg5 {[%emt 0:00:28]} Qd8 {[%emt 0:00:01][%cal Re7g5]} 22. Bh5 {[%emt 0:01:39]} (22. Nf3 $142) 22... Nxg5 $16 {[%emt 0:02:16]} 23. Bxg6 {[%emt 0:04:44]} fxg6 {[%emt 0:00:01]} 24. Rg3 {[%emt 0:00:36] Against Nh3} Rf8 {[%emt 0:01:55][%cal Be8f8,Bf8f4,Bf4h4][%mdl 32]} 25. Bxg5 {[%emt 0:04:56]} (25. Nb2 $16) 25... Bxg5 $11 {[%emt 0:00:01]} 26. Rhg1 {[%emt 0:01:22] [#]} (26. Nf3 $11 {remains equal.} Bf4 27. Rxg6) 26... Bxd2 {[%emt 0:02:00]} (26... Bh6 $1 $17) 27. Qxd2 {[%emt 0:00:15]} Be8 {[%emt 0:00:10]} 28. f3 $1 {[%emt 0:03:18]} Rf4 {[%emt 0:00:02]} (28... a5 {keeps more tension.} 29. Rh1 a4 30. Qh2 Qf6) 29. Nf2 {[%emt 0:00:24]} (29. Ne3 $11) 29... a5 {[%emt 0:00:18]} ({Black should try} 29... Rh4 $1 $15) 30. Nh3 {[%emt 0:02:58]} (30. Nd3 $11 Rh4 31. f4) 30... Rh4 $17 {[%emt 0:00:08]} 31. Ng5 {[%emt 0:00:25]} a4 {[%emt 0:01:13] Threatens to win with ...axb3.} 32. Ne6 {[%emt 0:00:13]} Qe7 {[%emt 0:00:09] Hoping for ...axb3.} 33. Qg5 {[%emt 0:02:12]} Qxg5 {[%emt 0:00:24]} 34. Rxg5 {[%emt 0:00:02]} Ra7 {[%emt 0:03:09] Prevents Nc7.} 35. R5g4 {[%emt 0:00:41]} Rh6 {[%emt 0:02:09]} 36. Ng5 $2 {[%emt 0:00:18]} (36. bxa4 $11 Rh2 37. f4) 36... Rh2 {[%emt 0:01:38]} ({Better is} 36... Bd7 $19 37. R4g2 Rh4) 37. R4g2 $11 {[%emt 0:00:15]} Rxg2 {[%emt 0:00:34]} 38. Rxg2 $15 {[%emt 0:00:01][%mdl 4096] Endgame KRB-KRN} Bd7 {[%emt 0:00:05]} 39. Rg3 {[%emt 0:01:47]} Ra8 {[%emt 0:00:05]} 40. Kb2 {[%emt 0:00:29]} a3+ {[%emt 0:00:35]} ({Black should play} 40... Kf8 $15 41. Rg1 Ke7) 41. Kc2 $11 {[%emt 0:04:49] The position is equal.} Rf8 {[%emt 0:02:46] White must now prevent ...Rf4.} 42. Rg2 {[%emt 0:03:31]} Rf4 {[%emt 0:00:32] ...Rh4 is the strong threat.} 43. Rh2 {[%emt 0:00:11] Inhibits Rh4.} Kf8 {[%emt 0:00:19]} 44. Kd3 {[%emt 0:04:12]} Ke7 {[%emt 0:00:02]} 45. Ke3 {[%emt 0:01:36]} Kf6 {[%emt 0:00:13]} 46. Nh7+ {[%emt 0:00:12]} Ke7 {[%emt 0:00:10]} 47. Ng5 {[%emt 0:00:04]} Kf6 {[%emt 0:01:29]} 48. Nh7+ {[%emt 0:00:37] Black escapes into a draw.  Weighted Error Value: White=0.23 (precise) /Black=0.20 (precise)} 1/2-1/2

[Event "FRA-ch Teams Top 16-Bas 2022"]
[Site "Chartres"]
[Date "2022.06.16"]
[Round "8.7"]
[White "Kuhn, Clement"]
[Black "Le Pen, Steven"]
[Result "1-0"]
[ECO "D91"]
[WhiteElo "2280"]
[BlackElo "2090"]
[Annotator "NA RC"]
[PlyCount "73"]
[EventDate "2022.06.16"]
[EventType "team-tourn"]
[EventCountry "FRA"]
[SourceTitle "playchess.com"]
[Source "ChessBase"]
[SourceQuality "1"]
[TimeControl "40/5400+30:1800+30"]

1. d4 {[%emt 0:00:03]} Nf6 {[%emt 0:00:14]} 2. c4 {[%emt 1:31:27]} g6 {[%emt 0:00:15]} 3. Nc3 {[%emt 0:00:00]} d5 {[%emt 0:00:06]} 4. Nf3 {[%emt 0:00:00]} Bg7 {[%emt 0:00:13]} 5. Bg5 {[%emt 0:00:00]} Ne4 {[%emt 0:00:14]} 6. Bf4 {[%emt 0:00:00]} Nxc3 {[%emt 0:01:03]} 7. bxc3 {[%emt 0:00:00]} dxc4 {[%emt 0:01:00]} 8. e3 {[%emt 0:00:00]} Be6 {[%emt 0:01:11]} 9. Qb1 {[%emt 0:00:00]} b6 {[%emt 0:18:39]} 10. Ng5 {[%emt 0:00:00]} Bd5 {[%emt 0:01:31]} 11. e4 {[%emt 0:00:00]} h6 {[%emt 0:03:16]} 12. Nf3 {[%emt 0:00:00]} Bb7 {[%emt 0:09:35]} 13. Bxc4 {[%emt 0:00:00]} c5 {[%emt 0:02:33]} 14. O-O {[%emt 0:00:00]} cxd4 {[%emt 0:04:38]} 15. cxd4 {[%emt 0:00:00]} O-O {[%emt 0:01:26]} 16. d5 {[%emt 0:00:00]} Nd7 {[%emt 0:01:45]} 17. e5 {[%emt 0:00:00]} Rc8 {[%emt 0:02:41]} 18. Rc1 {[%emt 0:00:00]} Rxc4 {[%emt 0:12:22]} 19. Rxc4 {[%emt 0:00:00]} Bxd5 {[%emt 0:00:36]} 20. Rd4 {[%emt 0:00:00]} e6 {[%emt 0:00:45]} 21. Qd3 {[%emt 0:00:00]} Nc5 {[%emt 0:05:15]} 22. Qe3 {[%emt 0:00:00]} h5 {[%emt 0:08:01]} 23. Rad1 {[%emt 0:00:00]} Qa8 {[%emt 0:01:54]} 24. a4 {[%emt 0:00:00]} Rc8 {[%emt 0:03:15]} 25. h3 {[%emt 0:00:00]} Bf8 {[%emt 0:06:59]} 26. Bh6 {[%emt 0:00:00]} Nd7 {[%emt 0:01:27]} 27. Bxf8 {[%emt 0:00:00]} Nxf8 {[%emt 0:00:16]} 28. Ng5 {[%emt 0:00:00]} Qc6 {[%emt 0:02:29]} 29. Ne4 {[%emt 0:00:00]} Nd7 {[%emt 0:01:33]} 30. Qf4 {[%emt 0:00:00]} Rc7 {[%emt 0:03:10]} 31. Re1 {[%emt 0:00:00]} Kg7 {[%emt 0:01:17]} 32. Kh2 {[%emt 0:00:00]} Qc2 {[%emt 0:03:23]} 33. Nf6 {[%emt 0:00:00]} Nxf6 {[%emt 0:01:01]} 34. exf6+ {[%emt 0:00:00]} Kh7 {[%emt 0:00:29]} 35. Rxd5 {[%emt 0:00:00]} exd5 {[%emt 0:00:32]} 36. Re7 {[%emt 0:00:00]} Rc8 {[%emt 0:02:54]} 37. Rxf7+ {[%emt 0:00:00]} 1-0

[Event "FRA-ch Teams Top 16-Bas 2022"]
[Site "Chartres"]
[Date "2022.06.16"]
[Round "8.8"]
[White "Ruhlmann, Helene"]
[Black "Hernandez, Lara"]
[Result "0-1"]
[ECO "D36"]
[WhiteElo "1779"]
[BlackElo "1965"]
[Annotator "TA"]
[PlyCount "148"]
[EventDate "2022.06.16"]
[EventType "team-tourn"]
[EventCountry "FRA"]
[SourceTitle "playchess.com"]
[Source "ChessBase"]
[SourceQuality "1"]
[TimeControl "40/5400+30:1800+30"]

{[%evp 22,148,0,0,14,0,8,-19,-8,-3,-11,-2,22,22,20,-8,11,16,85,83,86,83,79,83,85,84,89,77,99,100,141,135,143,141,172,172,249,266,316,259,283,240,198,187,182,169,164,154,150,160,181,65,75,85,87,89,80,69,110,110,112,112,164,175,161,9,208,192,204,183,167,0,0,0,0,0,0,0,0,0,0,0,0,0,0,0,0,0,29971,29972,29971,29973,29974,29975,29977,29978,29979,29980,29980,29981,29982,29983,29983,29984,29984,29985,29985,29986,29986,29987,29988,29989,29989,29990,29990,29991,29991,29992,29992,29993,29994,29994,29996,29993,29995,29994,29995,29996,29997]} 1. d4 {[%emt 0:00:03]} d5 {[%emt 0:01:27]} 2. c4 {[%emt 0:00:11]} e6 {[%emt 0:00:03]} 3. Nc3 {[%emt 0:00:07]} Nf6 {[%emt 0:00:04]} 4. cxd5 {[%emt 0:00:11]} exd5 {[%emt 0:00:03]} 5. Bg5 {[%emt 0:00:10]} c6 {[%emt 0:00:06]} 6. e3 {[%emt 0:00:22]} Be7 {[%emt 0:00:21]} 7. Bd3 {[%emt 0:00:17]} O-O {[%emt 0:00:20]} 8. Qc2 {[%emt 0:00:33]} Nbd7 {[%emt 0:00:11]} 9. Nge2 {[%emt 0:00:53]} Re8 {[%emt 0:01:01]} 10. f3 {[%emt 0:03:17]} Nf8 {[%emt 0:00:18]} 11. O-O {[%emt 0:00:15]} g6 $1 {[%emt 0:00:27][%mdl 4] is more profitable than 11...Be6 at the moment.} 12. Rad1 {[%emt 0:05:40]} Ne6 {[%emt 0:01:02] D36: Queen's Gambit Declined: Exchange Variation: Main line (5 Bg5 c6 6 Qc2).} 13. Bh6 {[%emt 0:00:44] [#]} b5 $146 {[%emt 0:07:25]} ({Predecessor:} 13... Bd6 14. h3 Nh5 15. e4 Bf4 16. Nxf4 Nexf4 17. Kh2 Qd6 18. e5 Qe7 19. Qf2 g5 20. Bb1 Ng7 21. h4 Nfe6 22. hxg5 Nxg5 23. f4 N5e6 24. f5 Nxd4 25. Bxg7 Qg5 26. Bf6 {1-0 (26) Sowray,P (2326)-Chlost,M (2167) Hastings 2013}) 14. Nf4 {[%emt 0:14:31]} Nxf4 $1 {[%emt 0:10:20] The position is equal.} 15. Bxf4 {[%emt 0:00:06]} Nh5 {[%emt 0:07:05]} 16. Bh6 {[%emt 0:17:59]} Bg5 {[%emt 0:04:06]} (16... Qd6 {with more complications.} 17. g4 g5 18. Bxh7+ Kh8) 17. Bxg5 {[%emt 0:01:28]} Qxg5 {[%emt 0:00:02]} 18. f4 {[%emt 0:00:14]} Qh6 {[%emt 0:08:33]} 19. Rde1 {[%emt 0:05:29]} f5 {[%emt 0:08:53]} (19... Re7 $11) 20. Nb1 $16 {[%emt 0:01:31][%cal Bc3b1,Bb1d2,Bd2f3,Bf3e5][%mdl 32]} Bd7 {[%emt 0:01:52]} 21. Nd2 {[%emt 0:02:05]} Nf6 {[%emt 0:02:52]} 22. Nf3 {[%emt 0:04:58]} Ng4 {[%emt 0:03:38]} 23. Qd2 {[%emt 0:00:19]} Qf8 {[%emt 0:03:38]} 24. h3 {[%emt 0:04:09]} Nf6 {[%emt 0:00:08]} 25. Ne5 {[%emt 0:00:18]} Qd6 {[%emt 0:01:05]} 26. Rc1 {[%emt 0:00:52]} Rac8 {[%emt 0:06:07]} 27. Rc5 {[%emt 0:03:04]} Ne4 {[%emt 0:05:10]} 28. Bxe4 {[%emt 0:00:32]} dxe4 {[%emt 0:02:00]} (28... fxe4 {was called for.} 29. Rfc1 Rc7) 29. Rfc1 $18 {[%emt 0:00:37]} Rc7 {[%emt 0:07:05]} 30. Qc2 {[%emt 0:04:01]} Be6 {[%emt 0:05:06]} 31. Rxc6 {[%emt 0:09:51]} Rxc6 {[%emt 0:00:38]} 32. Qxc6 {[%emt 0:00:05]} Qxc6 {[%emt 0:00:24]} 33. Nxc6 {[%emt 0:00:53]} ({But not} 33. Rxc6 Bxa2 34. Ra6 Bb3 $16) 33... Bxa2 {[%emt 0:01:51]} 34. Nxa7 {[%emt 0:00:15][%mdl 4096] Endgame KRB-KRN} Bc4 {[%emt 0:02:41]} 35. Nc6 {[%emt 0:00:55]} Ra8 {[%emt 0:01:05]} 36. Ne5 {[%emt 0:08:59]} (36. Rd1 $18) 36... Ra2 $14 {[%emt 0:03:55]} 37. b4 {[%emt 0:06:55]} Ra3 {[%emt 0:03:34]} 38. Nxc4 {[%emt 0:01:20]} bxc4 $16 {[%emt 0:00:07] KR-KR} 39. Kf2 {[%emt 0:01:05]} Ra2+ {[%emt 0:01:43]} 40. Kf1 $1 {[%emt 0:00:15]} Ra3 {[%emt 0:00:48]} 41. Ke2 $1 {[%emt 0:11:29]} ({Don't play} 41. Rxc4 Rxe3 42. Rc7 Rb3 $14) 41... Ra2+ {[%emt 0:05:01]} (41... c3 $16 {might work better.}) 42. Kd1 $1 $18 {[%emt 0:02:16]} Rxg2 {[%emt 0:00:11]} 43. Rb1 {[%emt 0:00:25] Inhibits Rb2.} ({White should try} 43. Rxc4 $18 {Hoping for Kc1.} Kf7 44. Kc1) 43... c3 $2 {[%emt 0:11:48]} (43... Kf7 $11 {and Black has nothing to worry.}) 44. Kc1 {[%emt 0:00:08]} Kf7 {[%emt 0:11:50]} 45. b5 {[%emt 0:04:20] Threatens to win with b6.} Ke6 {[%emt 0:01:30] [#] White must now prevent ...g5.} 46. b6 $2 {[%emt 0:00:41]} (46. Rb3 $1 $18 {aiming for b6.} Kd6 47. Rxc3) 46... Kd7 $11 {[%emt 0:00:06] ...Rg1+ is the strong threat.} 47. b7 {[%emt 0:01:28] Intending Rb5 and mate.} Rg1+ {[%emt 0:00:04]} 48. Kc2 {[%emt 0:00:04]} Rxb1 {[%emt 0:00:03]} 49. Kxb1 {[%emt 0:00:06] KP-KP} Kc7 {[%emt 0:00:05]} 50. Kc2 {[%emt 0:01:00]} Kxb7 {[%emt 0:01:22]} 51. Kxc3 {[%emt 0:03:09]} Kc6 {[%emt 0:01:31]} 52. Kd2 {[%emt 0:03:54]} h6 {[%emt 0:01:18] ( -> ...g5)} 53. h4 {[%emt 0:00:12][%cal Bh3h4,Bh4h5][%mdl 32] Against g5} Kd5 {[%emt 0:00:48]} 54. Ke2 {[%emt 0:00:31][%cal Oh4h5] h5! would kill now.} Kc4 $2 {[%emt 0:00:19][%mdl 8192] [#] Black is now going downhill.} (54... h5 $11) 55. h5 $1 {[%emt 0:02:15] White mates.} gxh5 {[%emt 0:00:36]} 56. Kf2 {[%emt 0:00:05]} Kd5 {[%emt 0:02:19]} 57. Kg3 {[%emt 0:00:11]} Ke6 {[%emt 0:01:07]} 58. Kh4 {[%emt 0:00:05]} Kf6 {[%emt 0:01:07]} 59. Kxh5 {[%emt 0:00:05] K3P-K3P} Kg7 {[%emt 0:00:05]} 60. d5 {[%emt 0:00:08]} Kf6 {[%emt 0:00:09]} 61. Kxh6 {[%emt 0:00:12] K3P-KPP} Ke7 {[%emt 0:00:04]} 62. Kg6 {[%emt 0:00:58]} Kd6 {[%emt 0:00:05]} 63. Kxf5 {[%emt 0:00:17]} Kxd5 {[%emt 0:00:04] KPP-KP} 64. Kf6 {[%emt 0:00:21]} Kc4 {[%emt 0:01:11]} 65. Ke5 {[%emt 0:00:19]} Kd3 {[%emt 0:00:04]} 66. f5 {[%emt 0:00:14]} Kxe3 {[%emt 0:00:04] KP-KP} 67. f6 {[%emt 0:00:10]} Kd3 {[%emt 0:00:55]} 68. f7 {[%emt 0:00:08]} e3 {[%emt 0:00:02]} 69. f8=Q {[%emt 0:00:11]} e2 {[%emt 0:00:06]} 70. Qf2 {[%emt 0:00:17]} Kd2 {[%emt 0:00:34]} 71. Ke4 {[%emt 0:00:18]} Kd1 {[%emt 0:00:11]} 72. Qd4+ {[%emt 0:00:06]} Kc1 {[%emt 0:00:13]} 73. Qe3+ {[%emt 0:00:09]} Kd1 {[%emt 0:00:05]} 74. Qd3+ {[%emt 0:00:07]} Ke1 {[%emt 0:05:19][%mdl 32768] Weighted Error Value: White=0.15 (very precise) /Black=0.32. Sensor Board Error (Ke4/e5)?} 0-1

[Event "FRA-ch Teams Top 16-Bas 2022"]
[Site "Chartres"]
[Date "2022.06.16"]
[Round "8.9"]
[White "Sochacki, Christophe"]
[Black "Kirk, Ezra"]
[Result "1/2-1/2"]
[ECO "E63"]
[WhiteElo "2493"]
[BlackElo "2446"]
[Annotator "TA"]
[PlyCount "154"]
[EventDate "2022.06.16"]
[EventType "team-tourn"]
[EventCountry "FRA"]
[SourceTitle "playchess.com"]
[Source "ChessBase"]
[SourceQuality "1"]
[TimeControl "40/5400+30:1800+30"]

{[%evp 14,154,33,23,32,29,29,37,41,30,27,14,40,38,38,33,39,38,77,56,66,63,64,51,33,0,60,0,50,33,32,35,28,28,37,27,22,-3,-2,-2,-2,-8,-5,-6,-8,-17,-16,-13,0,-20,0,0,0,0,0,0,0,0,0,0,0,0,0,0,1,0,0,0,0,0,0,0,0,0,0,0,0,0,0,0,0,0,0,0,0,0,0,0,0,0,0,0,0,0,0,0,0,-8,-8,-8,-8,-8,-8,-31,-31,-37,-37,-40,-40,-40,-40,-58,-38,-54,-54,-120,-120,-120,-120,-372,0,-54,-10,-26,-8,-8,-12,-12,-8,-120,-120,-120,-120,-120,-120,-120,-120,-120,-120,-120,-120,-120,0]} 1. d4 {[%emt 0:00:03]} Nf6 {[%emt 0:00:08]} 2. c4 {[%emt 0:00:03]} g6 {[%emt 0:03:00]} 3. g3 {[%emt 0:00:15]} Bg7 {[%emt 0:00:28]} 4. Bg2 {[%emt 0:00:04]} O-O {[%emt 0:00:44]} 5. Nf3 {[%emt 0:00:03]} d6 {[%emt 0:03:27]} 6. O-O {[%emt 0:00:12]} Nc6 {[%emt 0:00:27]} 7. Nc3 {[%emt 0:00:40]} a6 {[%emt 0:00:58] 7...e5 is the modern continuation.} 8. Bf4 {[%emt 0:00:38]} Bd7 {[%emt 0:02:16] E63: King's Indian: Fianchetto: Panno Variation with 7...a6.} 9. Rc1 {[%emt 0:00:21]} Rb8 {[%emt 0:01:56]} 10. a3 {[%emt 0:01:18]} Nh5 {[%emt 0:03:47] White is slightly better.} 11. Bg5 {[%emt 0:02:30]} h6 {[%emt 0:01:10]} 12. Be3 {[%emt 0:00:04] [#]} e6 $146 {[%emt 0:03:28]} ({Predecessor:} 12... e5 13. dxe5 dxe5 14. Qd2 Kh7 15. Rfd1 Be6 16. Nd5 f5 17. Qc2 Qc8 18. Nd2 Rf7 {½-½ (40) Silva,F (2256)-Pinzon,N (2226) ICCF email 2019}) 13. d5 {[%emt 0:19:42]} Ne7 {[%emt 0:02:17]} 14. dxe6 {[%emt 0:06:30]} Bxe6 {[%emt 0:01:44]} 15. c5 {[%emt 0:00:16]} Nf5 {[%emt 0:05:56] [#]} 16. Bd2 {[%emt 0:00:08] g4 is the strong threat.} Ne7 {[%emt 0:08:47]} (16... dxc5 $2 17. g4 $16) 17. cxd6 {[%emt 0:09:23]} cxd6 {[%emt 0:06:26]} 18. Be3 {[%emt 0:06:44]} Nf5 {[%emt 0:11:04]} 19. Bd2 {[%emt 0:00:35]} Ne7 {[%emt 0:01:24]} 20. Be3 {[%emt 0:08:37]} Nf5 {[%emt 0:01:09]} 21. Ba7 {[%emt 0:00:03]} Ra8 {[%emt 0:00:08]} 22. Bd4 {[%emt 0:00:04]} Nf6 $1 {[%emt 0:03:15]} 23. Qd2 {[%emt 0:02:56]} Re8 {[%emt 0:06:31]} 24. b4 {[%emt 0:01:04]} Rc8 {[%emt 0:07:35]} 25. e4 {[%emt 0:10:17]} Nxd4 {[%emt 0:00:34]} 26. Nxd4 {[%emt 0:00:02]} Bc4 {[%emt 0:00:41]} 27. Rfd1 {[%emt 0:00:04]} b5 {[%emt 0:05:04]} 28. h3 {[%emt 0:04:18]} Qb6 {[%emt 0:00:31]} 29. Kh2 {[%emt 0:00:10]} Rc7 {[%emt 0:03:07]} 30. a4 {[%emt 0:00:32]} Rec8 {[%emt 0:03:49]} 31. axb5 {[%emt 0:00:32]} (31. a5 $5 {[%cal Ra5b6]} Qa7 32. f4 $11) 31... axb5 {[%emt 0:00:25]} 32. Ra1 {[%emt 0:01:07]} Bb3 {[%emt 0:06:50] This bishop pair is nice.} 33. Ncxb5 {[%emt 0:00:30]} Bxd1 {[%emt 0:01:43]} 34. Nxc7 {[%emt 0:00:19]} Rxc7 {[%emt 0:01:10]} (34... Nxe4 35. Bxe4 Rxc7 36. Rxd1 $16) 35. Rxd1 {[%emt 0:06:53]} Rc4 {[%emt 0:00:11][%cal Oc4d4] Strongly threatening ...Rxd4!} 36. e5 {[%emt 0:04:34]} dxe5 {[%emt 0:00:49][%cal Rc4d4]} 37. Nc2 {[%emt 0:04:03]} Bf8 {[%emt 0:01:36]} 38. b5 {[%emt 0:01:26]} Ne4 {[%emt 0:03:02]} (38... Qxb5 39. Bf1 Ne4 40. Qe3 $16 (40. Bxc4 Qxc4 41. Qd3 Qxd3 $14)) 39. Qe2 {[%emt 0:01:19]} Qxf2 {[%emt 0:00:37]} (39... Nxf2 $2 40. Rf1 Rc3 41. Rxf2 $18 (41. Qxf2 Qxf2 42. Rxf2 Bc5 $18)) 40. Qxf2 {[%emt 0:00:46]} (40. Qxc4 $2 {perishes.} Qxg3+ 41. Kg1 Bc5+ 42. Nd4 (42. Kh1 $2 Nf2+ 43. Kg1 Nxh3+ 44. Kh1 Nf4 $19) 42... Qf2+ 43. Kh1 Ng3+ 44. Kh2 {[#]} Qf4 $1 $19) 40... Nxf2 {[%emt 0:00:06]} 41. Rd8 {[%emt 0:21:17][%cal Ob5b6]} Rxc2 {[%emt 0:05:08]} 42. b6 {[%emt 0:00:03]} Rb2 {[%emt 0:01:12]} 43. b7 {[%emt 0:00:02]} Ne4 {[%emt 0:05:16][%cal Ob2b7]} (43... Ng4+ $2 44. hxg4 Kg7 45. b8=Q $18) 44. b8=Q {[%emt 0:00:26]} Rxb8 {[%emt 0:00:06]} 45. Rxb8 $11 {[%emt 0:00:02][%mdl 4096] Endgame KRB-KBN} Nd6 {[%emt 0:00:09]} 46. Bd5 {[%emt 0:00:22]} Kg7 {[%emt 0:01:21]} 47. g4 {[%emt 0:00:33]} f5 {[%emt 0:06:12]} 48. gxf5 {[%emt 0:00:05]} gxf5 {[%emt 0:00:17]} 49. Kg3 {[%emt 0:00:05]} Be7 {[%emt 0:08:11]} 50. Rg8+ {[%emt 0:01:30]} Kf6 {[%emt 0:00:12]} 51. Rh8 {[%emt 0:02:06]} Kg7 {[%emt 0:00:22]} 52. Rg8+ {[%emt 0:00:04]} Kf6 {[%emt 0:00:04]} 53. Rh8 {[%emt 0:02:24]} Kg7 {[%emt 0:03:17]} 54. Ra8 {[%emt 0:03:21]} h5 {[%emt 0:00:58][%cal Bh6h5,Bh5h4][%mdl 32]} 55. Ra7 {[%emt 0:01:21]} h4+ {[%emt 0:00:15]} 56. Kf3 {[%emt 0:00:03]} Kf6 {[%emt 0:00:13]} 57. Bg8 {[%emt 0:02:49]} Nb5 {[%emt 0:01:09]} 58. Ra6+ {[%emt 0:00:52]} Kg5 {[%emt 0:00:28]} 59. Bh7 {[%emt 0:02:59]} e4+ {[%emt 0:00:28]} 60. Kg2 {[%emt 0:00:02][%cal Oh7f5]} Nd4 {[%emt 0:00:56] Threatens to win with ...e3.} 61. Ra5 {[%emt 0:01:04]} Kf4 {[%emt 0:00:38]} 62. Ra1 {[%emt 0:01:07]} Bf6 {[%emt 0:01:11]} 63. Rf1+ {[%emt 0:00:07]} Kg5 {[%emt 0:00:27]} 64. Rd1 {[%emt 0:02:01]} (64. Ra1 $15) 64... Be5 $17 {[%emt 0:00:49]} 65. Kf2 {[%emt 0:00:46] Against Ne2} Kf4 {[%emt 0:00:44] White must now prevent ...e3+.} 66. Kg2 $2 {[%emt 0:01:02][%mdl 8192]} (66. Kf1 $17) 66... Kg5 $2 {[%emt 0:00:55]} (66... e3 $19 67. Re1 Ke4) 67. Kf2 $15 {[%emt 0:00:05]} Kh6 {[%emt 0:01:39]} 68. Bg8 {[%emt 0:00:51]} f4 {[%emt 0:00:14] And now ...e3+ would win.} 69. Bd5 $1 {[%emt 0:00:46]} e3+ {[%emt 0:00:09]} 70. Kg2 {[%emt 0:00:01]} Kg5 {[%emt 0:02:01]} (70... e2 {feels hotter.} 71. Re1 Bd6 72. Bf3 Bb4) 71. Rxd4 {[%emt 0:01:45]} Bxd4 $11 {[%emt 0:00:37] KB-KB. Black is better.} 72. Kf3 {[%emt 0:00:06]} Kf6 {[%emt 0:00:55]} 73. Bc4 {[%emt 0:00:02]} Ke5 {[%emt 0:00:09]} 74. Ba6 {[%emt 0:00:02]} Bb6 {[%emt 0:00:44]} 75. Be2 {[%emt 0:00:02]} Bc7 {[%emt 0:00:25]} 76. Ba6 {[%emt 0:00:01]} Kd4 {[%emt 0:00:18]} 77. Be2 {[%emt 0:00:02]} Ke5 {[%emt 0:00:20] Weighted Error Value: White=0.05 (flawless) /Black=0.02 (flawless)} (77... Kc3 $17 78. Bf1 Bd6) 1/2-1/2